Cogmind - Beta 10.2 @@@ ROGUE MODE // 2021.12.02 @ 16:33:15 Player: TheSlyFawkes Result: Self-destructed Performance ------------- Evolutions (2) 1000 Regions Visited (4) 800 Robots Destroyed (32) 160 Value Destroyed (583) 583 Prototype IDs (3) 60 Alien Tech Used (0) 0 Bonus (60) 60 TOTAL SCORE: 2663 Bonus ------- Follower Combat Kills 60 Cogmind --------- Core Integrity 190/550 Matter 217/300 Energy 125/125 System Corruption 0% Temperature Cool (9) Movement Core (50) Location -8/Materials Parts ------- > --- POWER (2) -------- Light Ion Engine > --- PROPULSION (3) --- Flight Unit > --- UTILITY (4) ------ Weight Redist. System Improved Signal Interpreter Hacking Suite > --- WEAPON (2) ------- (None) > --- INVENTORY (4) ---- Weight Redist. System Transmission Jammer Peak State ------------ > --- POWER ------------ Cooled Ion Engine Light Nuclear Core > --- PROPULSION ------- Backup Propulsion I Improved Hover Unit Flight Unit > --- UTILITY ---------- Weight Redist. System Structural Scanner Maneuvering Thrusters Hacking Suite > --- WEAPON ----------- Light Assault Rifle Datajack > --- INVENTORY -------- Light Ion Engine Weight Redist. System Improved Signal Interpreter Transmission Jammer [Rating: 21] Favorites ----------- Power Light Ion Engine Engine Light Ion Engine Power Core Light Nuclear Core Propulsion Light Treads Treads Light Treads Hover Unit Improved Hover Unit Flight Unit Flight Unit Utility Small Storage Unit Device Structural Scanner Storage Small Storage Unit Processor Improved Signal Interpreter Hackware Hacking Suite Weapon Assault Rifle Energy Gun Heavy EM Pulse Gun Energy Cannon Beam Cannon Ballistic Gun Assault Rifle Launcher Rocket Launcher Special Melee Weapon Datajack Build | -11 -10 -10 -9 -8 ------- Run | Scr Mat Min Mat Mat Slots Evolved 4 | . . . 2 2 Power 1 | . . . 1 . Propulsion 1 | . . . . 1 Utility 2 | . . . 1 1 Weapon . | . . . . . Parts Attached 48 | 5 18 7 7 11 Power 10 | 1 4 1 2 2 Engine 9 | 1 4 1 1 2 Core 1 | . . . 1 . Reactor . | . . . . . Propulsion 9 | 2 1 2 1 3 Treads 3 | 2 1 . . . Leg . | . . . . . Wheel . | . . . . . Hover 2 | . . . . 2 Flight 4 | . . 2 1 1 Utility 8 | . 2 1 2 3 Device 4 | . 1 . 2 1 Storage 1 | . 1 . . . Processor 2 | . . . . 2 Hackware 1 | . . 1 . . Protection . | . . . . . Artifact . | . . . . . Weapon 21 | 2 11 3 2 3 Energy Gun 5 | . 3 . . 2 Energy Cannon 2 | . 2 . . . Ballistic Gun 11 | 2 5 3 1 . Ballistic Cannon . | . . . . . Launcher 1 | . . . . 1 Special Weapon . | . . . . . Impact Weapon . | . . . . . Slashing Weapon . | . . . . . Piercing Weapon . | . . . . . Special Melee Weapon 2 | . 1 . 1 . Unidentified Prototypes 1 | . . . . 1 Parts Lost 18 | . 1 . 4 13 Power 2 | . . . . 2 Propulsion 6 | . . . 2 4 Utility 3 | . . . 1 2 Weapon 7 | . 1 . 1 5 Highest Loss Streak 11 | . 1 . 4 11 Average Slot Usage (%) 91 | . 89 98 97 74 Engine 13 | . 14 14 9 8 Core 1 | . . . 11 5 Treads 20 | . 28 18 . . Flight 4 | . . 9 21 7 Device 10 | . 5 14 21 18 Storage 9 | . 13 9 . . Hackware 2 | . . 3 11 9 Energy Gun 5 | . 5 9 . 1 Ballistic Gun 19 | . 21 18 17 5 Special Melee Weapon 1 | . . . 3 5 Naked Turns . | . . . . . Heaviest Build 21 | 9 21 20 11 17 Greatest Support 40 | 40 40 40 14 20 Greatest Overweight (x) 2 | 1 . 1 1 2 Average Overweight (x) . | . . . . . Largest Inventory Capacity 6 | 4 6 6 4 4 Average Capacity 5 | 4 5 5 4 4 Most Carried 6 | 4 6 6 4 4 Average Carried 4 | 2 4 5 3 2 Final Capacity 6 | 4 6 4 4 4 Final Carried 6 | 3 6 4 1 2 Class Distribution -------------------- 75% | Mutant 24% | Scavenger-Mutant Dominant Class ---------------- Mutant | -10/Materials Mutant | -10/Mines Scavenger-Mutant | -9/Materials Scavenger-Mutant | -8/Materials Resources | -11 -10 -10 -9 -8 ----------- Run | Scr Mat Min Mat Mat Matter Collected 856 | 250 392 149 32 33 Remotely . | . . . . . Salvage Created 861 | . 599 107 53 102 Parts 64 | . 38 15 3 8 Haulers Intercepted 3 | . 2 . 1 . Recyclers Shooed . | . . . . . Parts Field Recycled . | . . . . . Retrieved Matter . | . . . . . Parts Self-Destructed . | . . . . . Prevented . | . . . . . Kills | -11 -10 -10 -9 -8 ------- Run | Scr Mat Min Mat Mat Combat Hostiles Destroyed 22 | . 13 4 . 5 Guns 21 | . 13 4 . 4 AOE 1 | . . . . 1 Classes Destroyed 7 | . 6 1 . . Tunneler 1 | . . 1 . . Hauler 3 | . 2 . 1 . Recycler 1 | . 1 . . . Operator 1 | . 1 . . . Watcher 4 | . 3 . . 1 Swarmer 14 | . 6 3 . 5 Grunt 8 | . 7 1 . . Best Kill Streak 3 | . 3 3 1 3 Combat Bots Only 3 | . 3 3 . 3 Max Kills in Single Turn 2 | . 1 2 1 2 Gunslinging 1 | . . 1 . 1 Exploded 1 | . . . . 1 Melee . | . . . . . Uniques/NPCs Destroyed . | . . . . . Combat | -11 -10 -10 -9 -8 -------- Run | Scr Mat Min Mat Mat Damage Taken 2287 | . 737 242 353 955 Core 644 | . 155 52 77 360 Absorbed by Shields . | . . . . . Core Remaining (%) 65 | 100 . 17 80 . Volleys Fired 94 | . 59 20 6 9 Largest 2 | . 2 2 2 2 Hottest 110 | . 90 65 40 110 Shots Fired 174 | . 112 40 12 10 Gun 170 | . 112 40 12 6 Cannon . | . . . . . Launcher 4 | . . . . 4 Special . | . . . . . Kinetic 128 | . 90 24 12 2 Thermal 19 | . 19 . . . Explosive 4 | . . . . 4 Electromagnetic 23 | . 3 16 . 4 Robot Hit Streak 21 | . 21 8 5 1 Robot Miss Streak 6 | . 4 6 1 2 Penetration Max . | . . . . . Secondary Targets 4 | . 2 1 . 1 Max Gunslinging Chain 1 | . 1 1 . 1 Shots Hit Robots 116 | . 78 25 10 3 Core Hits 52 | . 35 7 2 8 Critical Hits 1 | . 1 . . . Critical Kills . | . . . . . Critical Parts Destroyed 1 | . 1 . . . Melee Attacks 1 | . . . 1 . Impact . | . . . . . Slashing . | . . . . . Piercing . | . . . . . Sneak Attacks . | . . . . . Combat Hostiles . | . . . . . Follow-up Attacks . | . . . . . Damage Inflicted 1736 | . 1147 341 76 172 Guns 1428 | . 973 341 75 39 Cannons . | . . . . . Explosions 307 | . 174 . . 133 Melee . | . . . . . Ramming 1 | . . . 1 . Kinetic 1000 | . 772 143 75 10 Thermal 347 | . 347 . . . Explosive 133 | . . . . 133 Electromagnetic 255 | . 28 198 . 29 Impact . | . . . . . Slashing . | . . . . . Piercing . | . . . . . Highest Corruption . | . . . . . Average Corruption . | . . . . . Corruption Purged . | . . . . . Overload Shots . | . . . . . Overflow Damage 44 | . 44 . . . Projectiles . | . . . . . Explosions 44 | . 44 . . . Melee . | . . . . . Knockbacks . | . . . . . Impact . | . . . . . Kinetic . | . . . . . Secondary . | . . . . . Self-Inflicted Damage 222 | . 173 . . 49 Shots 3 | . 2 . . 1 Rammed 1 | . . . 1 . Targets Rammed 1 | . . . 1 . Kicked . | . . . . . Crushed . | . . . . . Highest Temperature 126 | . 114 126 24 15 Average Temperature 30 | . 28 38 10 9 Received Heat Transfer 648 | . 252 93 141 162 Siege Activations . | . . . . . Robots Corrupted . | . . . . . Combat Hostiles . | . . . . . Parts Fried . | . . . . . Impact Corruptions . | . . . . . Robots Melted . | . . . . . Combat Hostiles . | . . . . . Parts Melted . | . . . . . Heat Transferred 668 | . 668 . . . Parts Sabotaged . | . . . . . Parts Stolen . | . . . . . Parts Stripped . | . . . . . Power Chain Reactions 1 | . 1 . . . Missiles Intercepted . | . . . . . Alert | -11 -10 -10 -9 -8 ------- Run | Scr Mat Min Mat Mat Peak Influence 531 | . 238 148 531 310 Initial 211 | . . 22 57 211 Average 97 | . 70 61 234 232 Maximum Alert Level 2 | . 1 . 2 1 Low Security (%) 83 | 100 94 100 51 . Level 1 15 | . 5 . 32 99 Level 2 1 | . . . 15 . Level 3 . | . . . . . Level 4 . | . . . . . Level 5 . | . . . . . High Security . | . . . . . Max Security . | . . . . . Squads Dispatched 4 | . 3 1 . . Investigation 1 | . 1 . . . Extermination . | . . . . . Reinforcement 2 | . 2 . . . Assault 1 | . . 1 . . Garrison . | . . . . . Intercept . | . . . . . Construction Impeded . | . . . . . Haulers Reinforced . | . . . . . Stealth | -11 -10 -10 -9 -8 --------- Run | Scr Mat Min Mat Mat Distress Signals 3 | . 1 . 1 1 Communications Jammed . | . . . . . Distress Signals . | . . . . . Times Spotted 89 | . 29 11 35 14 Peak Tracking Total 17 | . 4 4 17 8 Tactical Retreats 13 | . 1 4 8 . Traps | -11 -10 -10 -9 -8 ------- Run | Scr Mat Min Mat Mat Traps Triggered 1 | . 1 . . . Indirectly . | . . . . . Trap Hack Attempts 28 | . 28 . . . Triggered . | . . . . . Disarmed 2 | . 2 . . . Reprogrammed . | . . . . . Reused . | . . . . . Traps Extracted . | . . . . . Installed . | . . . . . Triggered . | . . . . . Machines | -11 -10 -10 -9 -8 ---------- Run | Scr Mat Min Mat Mat Machines Disabled 5 | . 4 . . 1 Max in Single Turn 3 | . 3 . . 1 Machines Sabotaged . | . . . . . Garrisons Compromised . | . . . . . Overloaded Fab Kills . | . . . . . Fab Network Shutdowns . | . . . . . Hacking | -11 -10 -10 -9 -8 --------- Run | Scr Mat Min Mat Mat Machines Accessed 13 | . 6 . 6 1 Terminals 11 | . 6 . 5 . Fabricators . | . . . . . Repair Stations 2 | . . . 1 1 Recycling Units . | . . . . . Scanalyzers . | . . . . . Garrison Access . | . . . . . Total Hacks 38 | . 19 . 16 3 Successful 21 | . 12 . 8 1 Failed 17 | . 7 . 8 2 Catastrophic 1 | . 1 . . . Database Lockouts . | . . . . . Manual 16 | . 8 . 8 . Terminals 32 | . 19 . 13 . Fabricators . | . . . . . Repair Stations 6 | . . . 3 3 Recycling Units . | . . . . . Scanalyzers . | . . . . . Garrison Access . | . . . . . Terminal Hacks 18 | . 12 . 6 . Prototype ID Bank 1 | . . . 1 . Branch Access Points 1 | . . . 1 . Emergency Access Points 1 | . 1 . . . Terminal Index 2 | . 1 . 1 . Alert Level 4 | . 3 . 1 . Locate Traps 4 | . 3 . 1 . Surveillance Status 1 | . 1 . . . Transport Status 1 | . 1 . . . Zone Layout 3 | . 2 . 1 . Fabricator Hacks . | . . . . . Repair Station Hacks 3 | . . . 2 1 Scan Component 1 | . . . 1 . Repair 1 | . . . 1 . Refit 1 | . . . . 1 Recycling Unit Hacks . | . . . . . Scanalyzer . | . . . . . Garrison Access Hacks . | . . . . . Unauthorized Hacks . | . . . . . Terminals . | . . . . . Fabricators . | . . . . . Repair Stations . | . . . . . Recycling Units . | . . . . . Scanalyzers . | . . . . . Garrison Access . | . . . . . Data Cores Recovered . | . . . . . Used . | . . . . . Hacking Detections 12 | . 5 . 6 1 Full Trace Events . | . . . . . Feedback Events . | . . . . . Feedback Blocked . | . . . . . Robot Schematics Acquired . | . . . . . Robots Built . | . . . . . Matter . | . . . . . Time . | . . . . . Total Robot Build Rating . | . . . . . Part Schematics Acquired . | . . . . . Parts Built . | . . . . . Matter . | . . . . . Time . | . . . . . Total Part Build Rating . | . . . . . Parts Repaired 1 | . . . 1 . Time 26 | . . . 26 . Parts Recycled . | . . . . . Recycled Matter . | . . . . . Retrieved Matter . | . . . . . Retrieved Components . | . . . . . Parts Scanalyzed . | . . . . . Part Schematics Acquired . | . . . . . Parts Damaged . | . . . . . Bothacking | -11 -10 -10 -9 -8 ------------ Run | Scr Mat Min Mat Mat Used RIF Installer . | . . . . . Robots Hacked . | . . . . . Non-combat . | . . . . . Combat . | . . . . . Robot Hacks Applied . | . . . . . Relay Couplers Released . | . . . . . Robots Rewired . | . . . . . Allies Hacked . | . . . . . Hacks Repelled . | . . . . . Allies | -11 -10 -10 -9 -8 -------- Run | Scr Mat Min Mat Mat Total Allies 1 | . . 1 . . Largest Group 1 | . . 1 . . Highest-Rated Group 31 | . . 31 . . Highest-Rated Ally 31 | . . 31 . . Total Orders . | . . . . . Ally Attacks 7 | . . 7 . . Total Damage 105 | . . 105 . . Kills 2 | . . 2 . . Allies Corrupted . | . . . . . Allies Melted . | . . . . . Intel | -11 -10 -10 -9 -8 ------- Run | Scr Mat Min Mat Mat Robot Analysis Total . | . . . . . Derelict Logs Recovered 1 | . . 1 . . Drone Launches . | . . . . . Drone Recoveries . | . . . . . Exploration | -11 -10 -10 -9 -8 ------------- Run | Scr Mat Min Mat Mat Turns Passed 2915 | 64 1649 655 292 255 Spaces Moved 2366 | 46 870 648 560 242 Core 99 | 19 . 1 2 77 Treads 1134 | 27 870 237 . . Legs . | . . . . . Wheels . | . . . . . Hover 153 | . . . . 153 Flight 980 | . . 410 558 12 Fastest Speed 37 | 50 160 37 37 50 Average Speed 100 | 115 160 82 37 79 Slowest Speed 160 | 160 160 160 120 150 Overloaded Moves . | . . . . . Propulsion Burnouts . | . . . . . Robots Hopped 3 | . . . 3 . Cave-ins Triggered . | . . . . . Exploration Rate (%) 56 | 4 93 99 61 27 Regions Visited 4 Branch Regions 1 Pre-discovered Areas . | . . . . . Known Exits Taken . | . . . . . Unknown Exits Taken 4 | 1 1 1 1 . Scrap Searched 2 | . . 2 . . Spaces Dug . | . . . . . Terrain Destroyed 81 | . 41 . . 40 Melee . | . . . . . Projectile . | . . . . . AOE 81 | . 41 . . 40 Terrain Rammed . | . . . . . Walls Destroyed . | . . . . . Machines Disabled . | . . . . . Actions | -11 -10 -10 -9 -8 --------- Run | Scr Mat Min Mat Mat Total 2730 | 55 1019 734 627 295 Wait 132 | . 15 47 52 18 Move 2356 | 45 869 647 553 242 Hop 3 | . . . 3 . Pick Up 37 | 4 14 4 3 12 Fast Attach 15 | 5 6 2 1 1 Attach 21 | . 2 4 6 9 Detach . | . . . . . Swap 12 | . 10 1 . 1 Drop 30 | 1 16 9 1 3 Fire 94 | . 59 20 6 9 Melee 1 | . . . 1 . Ram 1 | . . . 1 . Kick . | . . . . . Crush . | . . . . . Escape Stasis . | . . . . . Rewire . | . . . . . Trap 28 | . 28 . . . Miscellaneous . | . . . . . Route ------- -11/Scrapyard -10/Materials (discovered 5 exits: *Mat x3 / [*Min x2]) -10/Mines (discovered 2 exits: *Mat x2) -9/Materials (discovered 4 exits: *Mat x3 / Min) -8/Materials (discovered 2 exits: [*Fac] / *Sto) History --------- Turn | Location | Event 2 | -11/Scrapyard | Met Revision 17 6 | -11/Scrapyard | Discovered new exit (range 15) 65 | -11/Scrapyard | Entered Materials 151 | -10/Materials | Discovered new exit (range 12) 313 | -10/Materials | Build established: Mutant 321 | -10/Materials | Discovered new exit (range 8) 552 | -10/Materials | Discovered new exit (range 11) 977 | -10/Materials | Discovered new exit (range 11) 1499 | -10/Materials | Discovered new exit (range 7) 1667 | -10/Materials | Core integrity fell below 50% 1714 | -10/Materials | Entered Mines 1764 | -10/Mines | YI-UF0 nonchalantly dropped a Grenade Launcher on the ground 1883 | -10/Mines | Discovered new exit (range 6) 2012 | -10/Mines | Discovered new exit (range 15) 2207 | -10/Mines | Met a Derelict testing a Signal Generator 2223 | -10/Mines | Found Signal Generator 2298 | -10/Mines | Core integrity fell below 20% 2369 | -10/Mines | Entered Materials 2369 | -9/Materials | Evolved 2 slots: Power x1, Utility x1 2370 | -9/Materials | Identified exit to Mines 2448 | -9/Materials | Build established: Scavenger-Mutant 2467 | -9/Materials | Discovered new exit (range 4) 2551 | -9/Materials | Discovered new exit (range 5) 2602 | -9/Materials | Repaired Lgt. Ion Engine 2630 | -9/Materials | Discovered new exit (range 13) 2661 | -9/Materials | Entered another Materials area 2661 | -8/Materials | Evolved 2 slots: Propulsion x1, Utility x1 2688 | -8/Materials | Lost 4 parts (2n1u1w) 2791 | -8/Materials | Discovered new exit (range 3) 2805 | -8/Materials | Identified exit to Storage 2820 | -8/Materials | Discovered new exit (range 8) 2879 | -8/Materials | Core integrity fell below 50% 2910 | -8/Materials | Lost 11 parts (2p3n2u4w) 2916 | -8/Materials | Self-destructed Last Messages --------------- K-01 Serf collects debris. Arc Projector destroyed. Acquired Flight Unit. K-01 Serf collects debris. Acquired Flight Unit. K-01 Serf collects debris. K-01 Serf destroyed. K-01 Serf collects debris. Dropped Flight Unit. Acquired Gravmag System. Arc Projector destroyed. K-01 Serf collects debris. Gravmag System destroyed. Acquired Rocket Launcher. S-10 Pest destroyed. W-25 Informer sends out distress signal. W-25 Informer destroyed. The unstable cave ceiling collapses. Terminal disabled. Rocket Launcher destroyed. Map ----- +----------------------------------------------------+ | ?????????????????????????????????????????????????? | | ?????????????????????????????????????????????????? | | ?????????????????????????????????????????????????? | | ?????????????????????????????????????????????????? | | ?????????????????????????????????????????????????? | | ?????????????????????????????????????????????????? | | ?????????????????????????????????????????????????? | | ?????????????????????????????????????????????????? | | ?????????????????????????????????????????????????? | | ?????????????????????????????????????????????????? | | ?????????????????????????????????????????????????? | | ?????????????????????????????????????????????????? | | ?????????????????????????????????????????????????? | | ?????????????????????????????????????????????????? | | ??????? ???????????????????????????????????????? | | ??????# ???????????+?##########????????????????? | | ??????# ??????????? ?# #????????????????? | | ??????# ??????????? ?# """ T +????????????????? | | ??????# ??????????# ## """ #????????????????? | | ??????# #########?# ##* """ #????????????????? | | ??????# # #?# # #????????????????? | | ??????# # #?# # """ !#????????????????? | | ??????# # #?# # = """ #????????????????? | | ??????# # #?# # """ #????????????????? | | ??????# # """ ### # ! #????????????????? | | ??????# # """ # Y @ ###????????????????? | | ??????# # """ Y ?????????? | | ##+#### # """ Y ########???????????? | | ## # """ # #??????????????????? | | ## + # # % #??????????????????? | | ## # # ## #??????????????????? | | ## ######### #?## #??????????????????? | | ## !!#???## #?? #??????????????????? | | ## !!#????# #?? #??????????????????? | | ## ==#????# #??""""g#??????????????????? | | ## =[== #????# ??""""g#??????????????????? | | ## =%*=[#????# #??"""" #??????????????????? | | ## %%* [#????# #?????? #??????????????????? | | ??# ########## #???????#??????????????????? | | #+##### ?????????????????????????? | | ?????????????????????????? | | ###########????????????????????????????? | | #??????????????????????????????????????? | | #####+##??????????????????????????????????????? | | #?????????????????????????????????????????????? | | < #?????????????????????????????????????????????? | | #?????????????????????????????????????????????? | | ####?????????????????????????????????????????????? | | ?????????????????????????????????????????????????? | | ?????????????????????????????????????????????????? | +----------------------------------------------------+ Best States ------------- Heat Dissipation 31 Energy Generation 23 Energy Capacity 340 Matter Stores 300 Matter Capacity 300 Sight Range 18 Terrain Scan Density 10 Additional Mass Support 6 Evasion (%) 62 Recoil Reduction 2 Offensive Hacking 10 Item Schematics ----------------- None Robot Schematics ------------------ None Fabricated ------------ Nothing Alien Tech Used ----------------- None Achievements -------------- None Challenges ------------ None Game ------ Seed SniperSpectralUnit Manual? 0 Play Time 00:39:40 Cumulative 24.6 hours Start 2021.12.02 @ 15:50:58 End 2021.12.02 @ 16:33:15 Sessions 1 Manual Loads 0 Difficulty Rogue Special Mode None Game No. 36 Rogue 35 Adventurer 1 Explorer 0 Win Type - Total 0 Types 0/0/0/0/0/0/0/0/0 Lore% 20 Gallery% 20 Achievement% 23 Wizard Run 0 Options --------- ASCII 0 Keyboard 0 Movement Mouse Keybinds 0 Fullscreen 1 Font 18/SmallcapsGlow Map View 76x50 Tactical HUD 0 Map Filters NONE Filters NONE Steam 1 RUN: e5c730bc-e3b9-4327-bf5b-ca9a15481c6a